bitfinex/quotes_BTCUSD_20240730
["timestamp","ask_amount","ask_price","bid_price","bid_amount"]
[1722382398962,0.18181786,66328.0,66327.0,0.012]
[1722382399375,0.33258286,66328.0,66327.0,0.012]
[1722382399573,0.33258286,66328.0,66327.0,0.012913]
[1722382400388,0.18181786,66328.0,66327.0,0.012913]
[1722382400545,0.150765,66328.0,66327.0,0.012913]
[1722382400745,0.17996046,66328.0,66327.0,0.012913]
[1722382401356,0.02919546,66328.0,66327.0,0.012913]
[1722382402540,0.17996046,66328.0,66327.0,0.012913]
[1722382403922,0.150765,66328.0,66327.0,0.012913]
[1722382404132,0.48151146,66328.0,66327.0,0.012913]
[1722382404340,0.02921546,66328.0,66327.0,0.012913]
[1722382404544,0.150765,66328.0,66327.0,0.012913]
[1722382404770,0.17998044,66328.0,66327.0,0.012913]
[1722382406214,0.17992987,66328.0,66327.0,0.012913]
[1722382407405,0.17991945,66328.0,66327.0,0.012913]
[1722382407630,0.17991945,66328.0,66321.0,0.301559]
[1722382407631,1.05547,66321.0,66315.0,0.095913]
[1722382407940,0.92490267,66321.0,66315.0,0.095913]
[1722382408150,0.94686145,66321.0,66315.0,0.095913]
[1722382408756,1.24842445,66321.0,66315.0,0.095913]
[1722382408947,1.37267699,66321.0,66315.0,0.095913]
[1722382409320,1.21995112,66321.0,66315.0,0.095913]
[1722382409751,1.37267699,66321.0,66316.0,0.0015542]
[1722382410214,1.37267699,66321.0,66320.0,0.002913]
[1722382410519,1.19079667,66321.0,66320.0,0.002913]
[1722382410728,1.23450066,66321.0,66320.0,0.002913]
[1722382412551,1.26615368,66321.0,66320.0,0.002913]
[1722382412980,1.23450066,66321.0,66320.0,0.002913]
[1722382413723,1.19079667,66321.0,66320.0,0.002913]
[1722382413935,1.19079667,66321.0,66320.0,0.000913]
[1722382413936,1.23725523,66321.0,66320.0,0.000913]
[1722382414168,0.753965,66316.0,66315.0,0.09113139]
[1722382414369,1.01974427,66316.0,66315.0,0.09113139]
[1722382414990,0.88412356,66316.0,66315.0,0.09113139]
[1722382416276,1.18570956,66316.0,66315.0,0.09113139]
[1722382416428,1.18570956,66316.0,66315.0,0.09613139]
[1722382416828,1.18570956,66316.0,66315.0,0.09813139]
[1722382417140,1.142251,66316.0,66315.0,0.09813139]
[1722382417341,1.18588689,66316.0,66315.0,0.09813139]
[1722382419273,1.09918689,66316.0,66315.0,0.09813139]
[1722382419483,0.79760089,66316.0,66315.0,0.09813139]
[1722382419677,0.88430089,66316.0,66315.0,0.09813139]
[1722382420451,0.8849684,66316.0,66315.0,0.09813139]
[1722382422711,1.02657158,66316.0,66315.0,0.09813139]
[1722382422915,0.93987158,66316.0,66315.0,0.09813139]
[1722382423118,0.8849684,66316.0,66315.0,0.09813139]
[1722382423672,0.840665,66316.0,66315.0,0.09113139]
[1722382423876,0.88388988,66316.0,66315.0,0.09213139]
[1722382424102,0.841665,66316.0,66315.0,0.09213139]
[1722382424282,0.88450026,66316.0,66315.0,0.09213139]
[1722382425102,0.49621426,66316.0,66315.0,0.15693139]
[1722382425359,0.63164737,66316.0,66315.0,0.15693139]
[1722382425594,0.17926837,66316.0,66315.0,0.30772639]
[1722382425857,0.001,66316.0,66315.0,0.69201639]
[1722382426118,0.001,66316.0,66315.0,0.99360639]
[1722382426363,0.301552,66324.0,66319.0,0.150785]
[1722382426364,0.13544128,66321.0,66319.0,0.150785]
[1722382426600,0.13544128,66321.0,66320.0,0.0663542]
[1722382426805,0.04311103,66321.0,66320.0,0.214584]
[1722382427022,0.13544128,66322.0,66321.0,0.535044]
[1722382427224,0.13546246,66329.0,66325.0,0.301543]
[1722382427432,0.04295545,66328.0,66327.0,0.149767]
[1722382427642,0.13546246,66331.0,66328.0,0.150765]
[1722382427856,0.04295486,66330.0,66323.0,0.301551]
[1722382428112,0.17841732,66330.0,66324.0,0.301549]
[1722382428346,0.04295486,66329.0,66327.0,0.150766]
[1722382429525,0.04295486,66329.0,66326.0,0.150769]
[1722382429733,0.04295486,66329.0,66327.0,0.0621]
[1722382429946,0.04295486,66329.0,66327.0,0.212868]
[1722382430154,0.04341169,66328.0,66327.0,0.211868]
[1722382430359,0.04341169,66330.0,66327.0,0.211868]
[1722382430559,0.04341169,66329.0,66327.0,0.211868]
[1722382430762,0.04341169,66328.0,66327.0,0.371635]
[1722382430967,0.04337512,66330.0,66328.0,0.150764]
[1722382431165,0.04337516,66329.0,66328.0,0.150765]
[1722382431365,0.13545839,66331.0,66329.0,0.150763]
[1722382431571,0.04326377,66330.0,66329.0,0.150763]
[1722382432289,0.04326377,66330.0,66327.0,0.367635]
[1722382432494,0.04326377,66330.0,66328.0,0.150765]
[1722382432708,0.04326377,66330.0,66328.0,0.155765]
[1722382432910,0.04326377,66330.0,66328.0,0.150765]
[1722382433327,0.13545839,66331.0,66330.0,0.150761]
[1722382433529,0.17871686,66331.0,66330.0,0.150761]
[1722382433724,0.13545839,66331.0,66330.0,0.150761]
[1722382433961,0.17871817,66331.0,66330.0,0.150761]
[1722382434840,0.00083,66333.0,66332.0,0.594569]
[1722382435045,0.00083,66333.0,66332.0,0.896082]
[1722382435494,0.00083,66333.0,66332.0,0.594569]
[1722382435816,0.04598541,66333.0,66332.0,1.284295]
[1722382436017,0.00083,66333.0,66332.0,1.284295]
[1722382436994,0.00083,66333.0,66332.0,1.298295]
[1722382437208,0.00083,66333.0,66332.0,1.312295]
[1722382437409,0.00083,66333.0,66332.0,1.298295]
[1722382437791,0.00083,66333.0,66332.0,1.312295]
[1722382438002,0.00083,66333.0,66332.0,1.46292804]
[1722382438202,0.00083,66333.0,66332.0,1.79744104]
[1722382438522,0.00083,66333.0,66332.0,1.89744104]
[1722382440365,0.00083,66333.0,66332.0,1.91944104]
[1722382440591,0.00083,66339.0,66338.0,1.528687]
[1722382440795,0.00083,66339.0,66338.0,1.81926004]
[1722382441471,0.00083,66339.0,66338.0,2.22074604]
[1722382442069,0.00083,66339.0,66338.0,1.91926004]
[1722382442471,0.00083,66339.0,66338.0,2.22074604]
[1722382442825,0.00083,66339.0,66338.0,2.23474604]
[1722382443367,0.00083,66339.0,66338.0,2.24874604]
[1722382443565,0.00083,66339.0,66338.0,2.23474604]
[1722382443859,0.00083,66339.0,66338.0,2.24874604]
[1722382444240,0.00083,66339.0,66338.0,2.25074604]
[1722382446506,0.00083,66342.0,66341.0,2.021808]
[1722382446705,0.045,66356.0,66355.0,0.680213]
[1722382446926,0.045,66356.0,66355.0,1.283031]
[1722382447322,0.045,66356.0,66355.0,1.58444]
[1722382448241,0.045,66356.0,66355.0,1.59844]
[1722382449408,0.045,66356.0,66355.0,1.61244]
[1722382450360,0.045,66356.0,66355.0,1.59844]
[1722382450983,0.045,66356.0,66355.0,1.61244]
[1722382453825,0.045,66356.0,66355.0,1.44844]
[1722382454918,0.045,66356.0,66355.0,1.45755501]
[1722382455331,0.045,66356.0,66355.0,1.46755501]
[1722382455531,0.045,66356.0,66355.0,1.53465501]
[1722382456075,0.045,66356.0,66355.0,1.73828805]
[1722382456283,0.045,66356.0,66355.0,1.77052805]
[1722382456902,0.045,66356.0,66355.0,1.75652805]
[1722382457321,0.045,66356.0,66355.0,1.74852805]
[1722382457679,0.045,66356.0,66355.0,1.76852805]
[1722382457883,0.045,66356.0,66355.0,1.72052805]
[1722382458809,0.045,66356.0,66355.0,1.73452805]
[1722382459348,0.045,66356.0,66355.0,1.74852805]
[1722382459601,0.045,66356.0,66355.0,1.76852805]
[1722382460129,0.045,66356.0,66355.0,1.74852805]
[1722382460775,0.045,66356.0,66355.0,2.16993705]
[1722382460979,0.045,66356.0,66355.0,2.14993705]
[1722382461175,0.045,66356.0,66355.0,2.16993705]
[1722382461397,0.045,66356.0,66355.0,2.13593705]
[1722382461806,0.045,66356.0,66355.0,2.14993705]
[1722382462236,0.045,66356.0,66355.0,2.13593705]
[1722382462556,0.045,66356.0,66355.0,2.14993705]
[1722382462917,0.045,66356.0,66355.0,2.15793705]
[1722382463195,0.045,66356.0,66355.0,2.17193705]
[1722382463747,0.045,66356.0,66355.0,2.15793705]
[1722382463947,0.045,66356.0,66355.0,2.17193705]
[1722382464358,0.045,66356.0,66355.0,2.15793705]
[1722382464880,0.045,66356.0,66355.0,2.17193705]
[1722382465253,0.0164,66356.0,66355.0,2.29719709]
[1722382465461,0.0085,66366.0,66361.0,1.540154]
[1722382465680,0.0085,66366.0,66361.0,1.85211004]
[1722382466014,0.0085,66366.0,66361.0,1.726854]
[1722382466596,0.0085,66366.0,66361.0,1.86610453]
[1722382466793,0.0085,66366.0,66361.0,1.86610377]
[1722382467235,0.0085,66366.0,66361.0,1.88010377]
[1722382467736,0.0085,66366.0,66361.0,2.35211781]
[1722382467939,0.0085,66366.0,66365.0,1.416373]
[1722382468153,0.0085,66366.0,66365.0,1.92200604]
[1722382468367,0.0085,66366.0,66365.0,2.34860771]
[1722382469397,0.0085,66366.0,66365.0,2.36260771]
[1722382470805,0.0085,66366.0,66365.0,2.34860771]
[1722382471345,0.45293115,66387.0,66376.0,0.032]
[1722382471575,0.45293115,66387.0,66376.0,1.21555504]
[1722382471797,0.45293115,66387.0,66376.0,1.81818104]
[1722382471798,0.00849,66387.0,66376.0,1.81818104]
[1722382471987,0.00849,66387.0,66376.0,2.11949404]
[1722382472162,0.00849,66387.0,66376.0,2.34471679]
[1722382473263,0.00849,66387.0,66376.0,2.37689404]
[1722382473663,0.00849,66387.0,66376.0,2.34489404]
[1722382473875,0.00849,66387.0,66376.0,2.45711248]
[1722382474569,0.00849,66387.0,66376.0,2.44311248]
[1722382474987,0.00849,66387.0,66376.0,2.42911248]
[1722382475214,0.00849,66387.0,66376.0,2.45711248]
[1722382476270,0.01849,66387.0,66376.0,2.45711248]
[1722382476512,0.01,66386.0,66376.0,2.03058104]
[1722382476734,0.00849,66387.0,66376.0,2.03058104]
[1722382476942,0.01849,66387.0,66376.0,2.03058104]
[1722382477362,0.00849,66387.0,66376.0,2.03058104]
[1722382477576,0.00849,66387.0,66376.0,2.03968703]
[1722382478216,0.01,66386.0,66376.0,2.03968703]
[1722382479505,0.00849,66387.0,66376.0,2.03968703]
[1722382479506,0.01849,66387.0,66376.0,2.03968703]
[1722382480124,0.01,66386.0,66376.0,2.03968703]
[1722382480541,0.00849,66387.0,66376.0,2.03968703]
[1722382482681,0.00849,66387.0,66376.0,2.34100003]
[1722382483127,0.00849,66387.0,66376.0,2.46622086]
[1722382483554,0.00849,66387.0,66376.0,2.46621324]
[1722382483719,0.00849,66387.0,66376.0,2.45221324]
[1722382484193,0.00849,66387.0,66376.0,2.46621324]
[1722382485292,0.00849,66387.0,66376.0,2.45221324]
[1722382485712,0.00849,66387.0,66376.0,2.46621324]
[1722382486365,0.00047,66388.0,66387.0,1.05442]
[1722382486569,0.00047,66388.0,66387.0,1.12002]
[1722382487559,0.00047,66388.0,66387.0,1.13402]
[1722382488829,0.00047,66388.0,66387.0,1.14802]
[1722382489432,0.08217,66394.0,66393.0,0.75309]
[1722382490554,0.08217,66394.0,66393.0,0.76709]
[1722382490709,0.08417,66394.0,66393.0,0.76709]
[1722382491989,0.08417,66394.0,66393.0,0.78109]
[1722382492755,0.08417,66394.0,66393.0,0.79006829]
[1722382493356,0.08417,66394.0,66393.0,0.78109]
[1722382496907,0.08417,66394.0,66393.0,0.028]
[1722382497112,0.59047436,66394.0,66393.0,0.028]
[1722382497342,1.19293836,66394.0,66393.0,0.028]
[1722382497718,1.30550201,66394.0,66393.0,0.028]
[1722382497989,1.26242902,66394.0,66393.0,0.028]
[1722382498193,1.19279966,66394.0,66393.0,0.028]
[1722382498396,1.32825434,66394.0,66393.0,0.028]
[1722382498574,1.46343077,66394.0,66393.0,0.014]
[1722382498774,1.46343077,66394.0,66393.0,0.019]
[1722382498989,1.62948634,66394.0,66393.0,0.019]
[1722382499206,1.62237725,66394.0,66393.0,0.005]
[1722382499412,1.62237725,66394.0,66393.0,0.008]
[1722382500000,1.48692257,66394.0,66393.0,0.008]
[1722382500337,1.27072257,66394.0,66393.0,0.005]
[1722382500614,1.27072257,66394.0,66393.0,0.006]
[1722382500615,1.27172257,66394.0,66393.0,0.006]
[1722382500755,1.150782,66394.0,66393.0,0.006]
[1722382500955,1.27289801,66394.0,66393.0,0.006]
[1722382501516,1.151612,66394.0,66393.0,0.006]
[1722382501734,1.27283893,66394.0,66393.0,0.006]
[1722382502147,1.42353325,66394.0,66393.0,0.006]
[1722382502372,1.27283893,66394.0,66393.0,0.001]
[1722382502700,1.27283893,66394.0,66393.0,0.002]
[1722382502701,1.34698937,66394.0,66393.0,0.002]
[1722382502906,1.42405069,66394.0,66393.0,0.001]
[1722382503132,1.42252652,66394.0,66393.0,0.002]
[1722382503689,1.3444652,66394.0,66393.0,0.001]
[1722382505087,1.3443014,66394.0,66393.0,0.001]
[1722382507183,1.19360708,66394.0,66393.0,0.001]
[1722382507397,0.89237508,66394.0,66393.0,0.001]
[1722382508903,0.59114308,66394.0,66393.0,0.001]
[1722382509063,0.59114308,66394.0,66388.0,0.150629]
[1722382509064,0.150622,66392.0,66388.0,0.150629]
[1722382509263,0.02,66389.0,66388.0,0.150629]
[1722382509526,0.19839334,66389.0,66388.0,0.150629]
[1722382509777,0.06499508,66389.0,66388.0,0.150629]
[1722382509960,0.20039377,66389.0,66388.0,0.216829]
[1722382510165,0.06464743,66389.0,66388.0,0.216829]
[1722382510429,0.06464743,66389.0,66388.0,0.518088]
[1722382510681,0.022,66389.0,66388.0,0.523088]
[1722382512443,0.022,66389.0,66388.0,0.526088]
[1722382513563,0.022,66389.0,66388.0,0.224829]
[1722382513823,0.17784716,66389.0,66388.0,0.008]
[1722382514010,0.23796206,66389.0,66388.0,0.008]
[1722382514212,0.14537994,66389.0,66388.0,0.008]
[1722382514988,0.29600694,66389.0,66388.0,0.008]
[1722382516817,0.14436813,66389.0,66388.0,0.008]
[1722382517011,0.06386813,66389.0,66388.0,0.008]
[1722382518301,1.08731006,66389.0,66388.0,0.008]
[1722382518549,1.54096067,66389.0,66388.0,0.008]
[1722382518749,1.60476406,66389.0,66388.0,0.008]
[1722382519101,1.60476406,66389.0,66388.0,0.005]
[1722382519313,0.022,66377.0,66376.0,0.000913]
[1722382519542,0.30811078,66377.0,66376.0,0.000913]
[1722382519745,0.65172116,66377.0,66376.0,0.000913]
[1722382519954,0.473963,66377.0,66376.0,0.000913]
[1722382520215,0.51626934,66377.0,66376.0,0.000913]
[1722382520419,0.21496034,66377.0,66376.0,0.000913]
[1722382520616,0.21496034,66377.0,66376.0,0.012913]
[1722382521297,0.51626934,66377.0,66376.0,0.012913]
[1722382521500,0.65168508,66377.0,66376.0,0.012913]
[1722382521836,0.65168508,66377.0,66376.0,0.021913]
[1722382522042,0.51626934,66377.0,66376.0,0.021913]
[1722382522429,0.65166329,66377.0,66376.0,0.021913]
[1722382522829,0.35035429,66377.0,66376.0,0.021913]
[1722382523027,0.172654,66377.0,66376.0,0.021913]
[1722382523230,0.34964175,66377.0,66376.0,0.021913]
[1722382524379,0.21425154,66377.0,66376.0,0.021913]
[1722382525672,0.21425154,66377.0,66376.0,0.086013]
[1722382526299,0.21429693,66377.0,66376.0,0.086013]
[1722382527396,0.51560593,66377.0,66376.0,0.021913]
[1722382528671,1.44805595,66377.0,66376.0,0.021913]
[1722382528850,1.34386141,66377.0,66376.0,0.021913]
[1722382529051,1.20852393,66377.0,66376.0,0.021913]
[1722382530079,1.166881,66377.0,66376.0,0.021913]
[1722382530300,1.20843281,66377.0,66376.0,0.021913]
[1722382530483,1.35912713,66377.0,66376.0,0.021913]
[1722382531872,1.36630049,66377.0,66376.0,0.021913]
[1722382532833,1.32474868,66377.0,66376.0,0.021913]
[1722382533033,1.36628264,66377.0,66376.0,0.021913]
[1722382535263,1.21558832,66377.0,66376.0,0.021913]
[1722382535964,1.17405436,66377.0,66376.0,0.021913]
[1722382536163,1.21579213,66377.0,66376.0,0.021913]
[1722382536565,1.20449213,66377.0,66376.0,0.021913]
[1722382538015,1.12549213,66377.0,66376.0,0.021913]
[1722382539407,1.1258265,66377.0,66376.0,0.021913]
[1722382539808,1.30914633,66377.0,66376.0,0.021913]
[1722382540100,1.35122973,66377.0,66376.0,0.021913]
[1722382540269,1.36678984,66377.0,66376.0,0.021913]
[1722382540785,1.69241736,66377.0,66376.0,0.021913]
[1722382542313,1.91452524,66377.0,66376.0,0.021913]
[1722382542521,1.57376336,66377.0,66376.0,0.021913]
[1722382542662,1.69282066,66377.0,66376.0,0.021913]
[1722382542897,1.84351498,66377.0,66376.0,0.021913]
[1722382545843,1.8441334,66377.0,66376.0,0.021913]
[1722382549051,1.72445768,66377.0,66376.0,0.021913]
[1722382549365,1.84359688,66377.0,66376.0,0.021913]
[1722382549644,1.84359687,66377.0,66376.0,0.021913]
[1722382550679,1.69290255,66377.0,66376.0,0.021913]
[1722382551267,1.6936267,66377.0,66376.0,0.021913]
[1722382552449,1.69443027,66377.0,66376.0,0.021913]
[1722382555557,1.68313027,66377.0,66376.0,0.021913]
[1722382555703,1.6828915,66377.0,66376.0,0.021913]
[1722382556103,1.83358582,66377.0,66376.0,0.021913]
[1722382556345,1.6828915,66377.0,66376.0,0.021913]
[1722382558676,1.8532915,66377.0,66376.0,0.021913]
[1722382559086,1.85185553,66377.0,66376.0,0.021913]
[1722382559311,1.93845553,66377.0,66376.0,0.021913]
[1722382559641,1.93845638,66377.0,66376.0,0.021913]
[1722382559760,1.93845638,66377.0,66376.0,0.012913]
[1722382559967,1.93845638,66377.0,66376.0,0.000913]
[1722382560177,2.0891507,66377.0,66376.0,0.003913]
[1722382560371,2.0891507,66377.0,66376.0,0.008913]
[1722382560774,2.0991507,66377.0,66376.0,0.008913]
[1722382561274,2.22837648,66377.0,66376.0,0.008913]
[1722382561492,2.45055836,66377.0,66376.0,0.008913]
[1722382561696,2.44055836,66377.0,66376.0,0.008913]
[1722382561895,2.28986404,66377.0,66376.0,0.008913]
[1722382562099,2.06768216,66377.0,66376.0,0.008913]
[1722382563309,2.28986404,66377.0,66376.0,0.008913]
[1722382564471,1.94926336,66377.0,66376.0,0.008913]
[1722382564682,2.06712462,66377.0,66376.0,0.008913]
[1722382566183,2.21781894,66377.0,66376.0,0.008913]
[1722382566391,2.22781894,66377.0,66376.0,0.008913]
[1722382566614,2.21781894,66377.0,66376.0,0.008913]
[1722382567811,2.22740922,66377.0,66376.0,0.008913]
[1722382568069,2.21740922,66377.0,66376.0,0.008913]
[1722382568312,2.14052737,66377.0,66376.0,0.008913]
[1722382568544,2.20484208,66377.0,66376.0,0.008913]
[1722382569399,1.97674776,66377.0,66376.0,0.008913]
[1722382570000,1.97646548,66377.0,66376.0,0.008913]
[1722382570992,1.86056336,66377.0,66376.0,0.008913]
[1722382571142,1.97674945,66377.0,66376.0,0.008913]
[1722382574407,1.93642798,66377.0,66376.0,0.008913]
[1722382574610,1.97726027,66377.0,66376.0,0.008913]
[1722382575037,2.12795459,66377.0,66376.0,0.008913]
[1722382577745,2.12813647,66377.0,66376.0,0.008913]
[1722382577875,1.96903647,66377.0,66376.0,0.008913]
[1722382578081,1.85215768,66377.0,66376.0,0.008913]
[1722382578280,2.12908091,66377.0,66376.0,0.008913]
[1722382579832,2.12897307,66377.0,66376.0,0.008913]
[1722382580185,2.12697307,66377.0,66376.0,0.008913]
[1722382580388,2.12897307,66377.0,66376.0,0.008913]
[1722382581052,2.12913206,66377.0,66376.0,0.008913]
[1722382581257,1.99923206,66377.0,66376.0,0.008913]
[1722382584189,1.88135768,66377.0,66376.0,0.008913]
[1722382584396,1.99942922,66377.0,66376.0,0.008913]
[1722382585573,2.00942922,66377.0,66376.0,0.008913]
[1722382586558,2.25399264,66377.0,66376.0,0.008913]
[1722382587084,2.33449264,66377.0,66376.0,0.008913]
[1722382587514,2.33389627,66377.0,66376.0,0.008913]
[1722382587725,2.34519627,66377.0,66376.0,0.008913]
[1722382587897,2.2064211,66377.0,66376.0,0.008913]
[1722382588080,2.3238966,66377.0,66376.0,0.008913]
[1722382589897,2.32467154,66377.0,66376.0,0.008913]
[1722382590051,2.07945637,66377.0,66376.0,0.008913]
[1722382590718,1.96185768,66377.0,66376.0,0.008913]
[1722382590945,2.3248871,66377.0,66376.0,0.008913]
[1722382592274,2.3348871,66377.0,66376.0,0.008913]
[1722382594079,2.33322852,66377.0,66376.0,0.008913]
[1722382594284,2.08801556,66377.0,66376.0,0.008913]
[1722382597411,2.08801556,66377.0,66363.0,0.0643]
[1722382597412,0.331784,66364.0,66363.0,0.0643]
[1722382597627,0.331784,66364.0,66352.0,0.44444115]
[1722382597628,0.172709,66353.0,66352.0,0.44444115]
[1722382597867,0.172709,66353.0,66332.0,0.33172]
[1722382597868,0.775657,66343.0,66332.0,0.33172]
[1722382598126,0.76195531,66343.0,66342.0,0.065213]
[1722382598386,0.30760461,66343.0,66342.0,0.145613]
[1722382598599,0.60906761,66343.0,66342.0,0.145613]
[1722382598830,0.95657984,66343.0,66342.0,0.145613]
[1722382599496,0.97086011,66343.0,66342.0,0.145613]
[1722382600038,0.97086011,66343.0,66342.0,0.159613]
[1722382600620,0.97086511,66343.0,66342.0,0.173613]
[1722382601239,1.27232811,66343.0,66342.0,0.173613]
[1722382603189,1.26130833,66343.0,66342.0,0.173613]
[1722382603419,1.17480833,66343.0,66342.0,0.173613]
[1722382603710,1.26130833,66343.0,66342.0,0.159613]
[1722382603913,1.215924,66343.0,66342.0,0.145613]
[1722382604111,1.36847787,66343.0,66342.0,0.145613]
[1722382604314,1.216924,66343.0,66342.0,0.145613]
[1722382605197,1.217924,66343.0,66342.0,0.155613]
[1722382605427,1.35585376,66343.0,66342.0,0.155613]
[1722382606630,1.35765287,66343.0,66342.0,0.155613]
[1722382607326,1.35769015,66343.0,66342.0,0.155613]
[1722382607556,1.16448561,66343.0,66342.0,0.155613]
[1722382607762,1.21974892,66343.0,66342.0,0.155613]
[1722382609280,1.21973043,66343.0,66342.0,0.155613]
[1722382610516,0.83174266,66343.0,66342.0,0.155613]
[1722382610735,0.91824266,66343.0,66342.0,0.155613]
[1722382610944,1.34825826,66343.0,66342.0,0.155613]
[1722382612289,1.44825826,66343.0,66342.0,0.075213]
[1722382613624,1.4477719,66343.0,66342.0,0.075213]
[1722382614285,1.60004459,66343.0,66342.0,0.075213]
[1722382615181,1.8243349,66343.0,66342.0,0.010913]
[1722382615325,1.91350828,66343.0,66342.0,0.010913]
[1722382616464,1.91350828,66343.0,66342.0,0.000913]
[1722382616465,1.91250828,66343.0,66342.0,0.000913]
[1722382617026,1.91159223,66343.0,66342.0,0.000913]
[1722382617234,1.83649223,66343.0,66342.0,0.000913]
[1722382617471,1.69350121,66343.0,66342.0,0.010913]
[1722382617640,1.83749042,66343.0,66342.0,0.010913]
[1722382618020,1.83849042,66343.0,66342.0,0.019913]
[1722382618215,1.83749042,66343.0,66342.0,0.009913]
[1722382618460,1.83649042,66343.0,66342.0,0.000913]
[1722382618662,1.84049042,66343.0,66342.0,0.145213]
[1722382618916,1.84649042,66343.0,66342.0,0.146213]
[1722382619042,1.84738973,66343.0,66342.0,0.146213]
[1722382619939,1.9995842,66343.0,66342.0,0.146213]
[1722382620294,1.8546949,66343.0,66342.0,0.146213]
[1722382620491,1.99895245,66343.0,66342.0,0.146213]
[1722382621517,1.02878016,66343.0,66342.0,0.146213]
[1722382621878,1.02596376,66343.0,66342.0,0.146213]
[1722382622419,1.02592124,66343.0,66342.0,0.146213]
[1722382624135,1.11473728,66343.0,66342.0,0.146213]
[1722382624556,1.56838053,66343.0,66342.0,0.146213]
[1722382624861,1.41761185,66343.0,66342.0,0.146213]
[1722382625380,1.26516293,66343.0,66342.0,0.146213]
[1722382625575,1.41736142,66343.0,66342.0,0.146213]
[1722382625797,1.26517457,66343.0,66342.0,0.146213]
[1722382625992,1.11447711,66343.0,66342.0,0.146213]
[1722382626177,1.11447216,66343.0,66342.0,0.146213]
[1722382627843,1.11452309,66343.0,66342.0,0.146213]
[1722382629071,1.11477202,66343.0,66342.0,0.146213]
[1722382629240,1.26546634,66343.0,66342.0,0.146213]
[1722382630390,1.41851764,66343.0,66342.0,0.146213]
[1722382630558,1.56775934,66343.0,66342.0,0.146213]
[1722382630777,1.26629634,66343.0,66342.0,0.146213]
[1722382632343,1.26574954,66343.0,66342.0,0.146213]
[1722382633130,1.41803312,66343.0,66342.0,0.146213]
[1722382633347,1.26574954,66343.0,66342.0,0.146213]
[1722382634423,1.71949612,66343.0,66342.0,0.146213]
[1722382634834,1.56721254,66343.0,66342.0,0.146213]
[1722382635436,1.42400993,66343.0,66342.0,0.146213]
[1722382635663,1.56698007,66343.0,66342.0,0.146213]
[1722382636075,1.56498007,66343.0,66342.0,0.146213]
[1722382636276,1.56698007,66343.0,66342.0,0.146213]
[1722382636475,1.56698007,66343.0,66342.0,0.065813]
[1722382637613,1.56610285,66343.0,66342.0,0.065813]
[1722382638235,1.56610285,66343.0,66342.0,0.001913]
[1722382638236,2.12366585,66343.0,66342.0,0.001913]
[1722382638586,2.11366585,66343.0,66342.0,0.001913]
[1722382638994,2.33604398,66343.0,66342.0,0.001913]
[1722382639325,2.11366585,66343.0,66342.0,0.001913]
[1722382641377,2.12366585,66343.0,66342.0,0.001913]
[1722382641610,2.13666585,66343.0,66342.0,0.001913]
[1722382642015,1.99457293,66343.0,66342.0,0.001913]
[1722382642223,2.13653985,66343.0,66342.0,0.001913]
[1722382643844,2.12523985,66343.0,66342.0,0.001913]
[1722382644348,1.59738253,66343.0,66342.0,0.001913]
[1722382644554,1.59538253,66343.0,66342.0,0.062513]
[1722382644783,1.59738253,66343.0,66342.0,0.062513]
[1722382644990,1.89884553,66343.0,66342.0,0.062513]
[1722382645404,1.75487861,66343.0,66342.0,0.062513]
[1722382645637,2.05038597,66343.0,66342.0,0.062513]
[1722382646090,1.41612865,66343.0,66342.0,0.062513]
[1722382646524,1.41612865,66343.0,66342.0,0.137913]
[1722382646966,1.6388761,66343.0,66342.0,0.137913]
[1722382647137,1.41612865,66343.0,66342.0,0.137913]
[1722382647299,1.6388761,66343.0,66342.0,0.137913]
[1722382647495,1.41517857,66343.0,66342.0,0.137913]
[1722382648374,1.63794502,66343.0,66342.0,0.137913]
[1722382648550,1.49608206,66343.0,66342.0,0.137913]
[1722382648794,1.63827811,66343.0,66342.0,0.137913]
[1722382649172,1.63815341,66343.0,66342.0,0.137913]
[1722382649532,1.41538696,66343.0,66342.0,0.137913]
[1722382649937,1.56608128,66343.0,66342.0,0.137913]
[1722382652539,1.56408128,66343.0,66342.0,0.137913]
[1722382652738,1.56608128,66343.0,66342.0,0.137913]
[1722382652950,1.11392396,66343.0,66342.0,0.137913]
[1722382654451,1.10792396,66343.0,66342.0,0.136913]
[1722382654831,1.10992396,66343.0,66342.0,0.136913]
[1722382655033,0.96385261,66343.0,66342.0,0.136913]
[1722382655240,1.10640353,66343.0,66342.0,0.136913]
[1722382655667,1.05233288,66343.0,66342.0,0.136913]
[1722382655847,1.10639956,66343.0,66342.0,0.136913]
[1722382657164,1.10739956,66343.0,66342.0,0.136913]
[1722382657347,0.26724256,66343.0,66342.0,0.136913]
[1722382657524,0.17876229,66343.0,66342.0,0.136913]
[1722382657745,0.17876229,66343.0,66342.0,0.236913]
[1722382657746,0.07876229,66343.0,66342.0,0.236913]
[1722382657953,0.17876229,66343.0,66342.0,0.236913]
[1722382658169,0.17676229,66343.0,66342.0,0.236913]
[1722382658373,0.27242661,66343.0,66342.0,0.236913]
[1722382658539,0.33078901,66343.0,66342.0,0.236913]
[1722382658898,0.32678901,66343.0,66342.0,0.236913]
[1722382659099,0.32678901,66343.0,66342.0,0.239913]
[1722382659321,0.32678901,66343.0,66342.0,0.240913]
[1722382659525,0.71475201,66343.0,66342.0,0.237913]
[1722382660804,0.71575201,66343.0,66342.0,0.242913]
[1722382661151,0.71575201,66343.0,66342.0,0.241913]
[1722382661587,0.71575201,66343.0,66342.0,0.244913]
[1722382661804,0.71554045,66343.0,66342.0,0.244913]
[1722382662539,1.11870259,66343.0,66342.0,0.244913]
[1722382664988,1.11856119,66343.0,66342.0,0.244913]
[1722382665385,1.06455175,66343.0,66342.0,0.244913]
[1722382665612,1.11856204,66343.0,66342.0,0.244913]
[1722382667252,1.50848389,66343.0,66342.0,0.244913]
[1722382667456,1.50848389,66343.0,66342.0,0.169513]
[1722382667883,1.89304689,66343.0,66342.0,0.108913]
[1722382667994,2.05214689,66343.0,66342.0,0.108913]
[1722382668202,2.02112112,66343.0,66342.0,0.108913]
[1722382668398,2.07453698,66343.0,66342.0,0.108913]
[1722382669436,2.07453698,66343.0,66342.0,0.105913]